fUST/lending_fUST_20260117
["ID","MTS","AMOUNT","RATE_DAILY","PERIOD"]
[402246683,1768619449551,-280.03725112,0.00019271,2]
[402246684,1768619449560,-290.39862941,0.00019271,2]
[402246685,1768619449573,-151.0,0.00019271,2]
[402246686,1768619449582,-301.1433787,0.00019271,2]
[402246687,1768619449592,-2150.738,0.00019271,2]
[402246688,1768619449601,-151.0,0.00019271,2]
[402246689,1768619449611,-151.0,0.00019271,2]
[402246690,1768619449620,-151.0,0.00019271,2]
[402246691,1768619449629,-151.0,0.00019271,2]
[402246692,1768619449638,-151.0,0.00019271,2]
[402246693,1768619449647,-151.0,0.00019271,2]
[402246694,1768619449657,-151.0,0.00019271,2]
[402246695,1768619449666,-151.0,0.00019271,2]
[402246696,1768619449675,-151.0,0.00019271,2]
[402246697,1768619449684,-151.0,0.00019271,2]
[402246698,1768619449693,-151.0,0.00019271,2]
[402246699,1768619449703,-151.0,0.00019271,2]
[402246700,1768619449712,-157.34678723,0.00019271,2]
[402246701,1768619449721,-1582.960842,0.00019271,2]
[402246702,1768619449731,-1582.960842,0.00019271,2]
[402246703,1768619449740,-1582.960842,0.00019271,2]
[402246704,1768619449749,-1582.960842,0.00019271,2]
[402246705,1768619449759,-303.10001603,0.00019278,2]
[402246706,1768619449768,-303.10001603,0.00019278,2]
[402246707,1768619449778,-40425.0928494,0.00019425,2]
[402246708,1768619449787,-209.936034,0.00019425,7]
[402246709,1768619449796,-2290.79261385,0.0001943,3]
[402246710,1768619449806,-500.0,0.00019452,3]
[402246711,1768619449815,-500.0,0.00019452,3]
[402246712,1768619449826,-500.0,0.00019452,3]
[402246713,1768619449836,-500.0,0.00019452,3]
[402246714,1768619449846,-500.0,0.00019452,3]
[402246715,1768619449855,-500.0,0.00019452,3]
[402246716,1768619449866,-500.0,0.00019452,3]
[402246717,1768619449875,-500.0,0.00019452,3]
[402246718,1768619449884,-500.0,0.00019452,3]
[402246719,1768619449894,-1606.8,0.00019452,3]
[402246720,1768619449903,-628.01,0.00019452,3]
[402246721,1768619449912,-500.0,0.00019452,3]
[402246722,1768619449921,-500.0,0.00019452,3]
[402246723,1768619449931,-1177.63,0.00019452,3]
[402246724,1768619449941,-975.58796971,0.00019452,3]
[402246725,1768619449950,-884.72,0.00019452,3]
[402246726,1768619449959,-500.0,0.00019452,3]
[402246727,1768619449969,-500.0,0.00019452,3]
[402246728,1768619449978,-500.0,0.00019452,3]
[402246729,1768619449987,-500.0,0.00019452,3]
[402246730,1768619449996,-500.0,0.00019452,3]
[402246731,1768619450006,-500.0,0.00019452,3]
[402246732,1768619450015,-827.02,0.00019452,3]
[402246733,1768619450024,-504.12,0.00019452,3]
[402246734,1768619450034,-931.71,0.00019452,3]
[402246735,1768619450043,-444.83809808,0.00019452,3]
[402246736,1768619450052,-500.0,0.00019452,3]
[402246737,1768619450062,-500.0,0.00019452,3]
[402246739,1768619450071,-519.34,0.00019452,3]
[402246741,1768619450080,-675.29,0.00019452,3]
[402246742,1768619450089,-500.0,0.00019452,3]
[402246743,1768619450099,-500.0,0.00019452,3]
[402246744,1768619450109,-500.0,0.00019452,3]
[402246746,1768619450119,-507.27,0.00019452,3]
[402246748,1768619450128,-500.0,0.00019452,3]
[402246750,1768619450139,-500.0,0.00019452,3]
[402246751,1768619450148,-500.0,0.00019452,3]
[402246753,1768619450158,-1469.91,0.00019452,3]
[402246754,1768619450167,-500.0,0.00019452,3]
[402246755,1768619450177,-500.0,0.00019452,3]
[402246756,1768619450186,-685.61,0.00019452,3]
[402246757,1768619450195,-500.0,0.00019452,3]
[402246758,1768619450204,-500.0,0.00019452,3]
[402246759,1768619450214,-500.0,0.00019452,3]
[402246760,1768619450223,-500.0,0.00019452,3]
[402246761,1768619450233,-500.4671628,0.00019452,3]
[402246762,1768619450243,-500.0,0.00019452,3]
[402246763,1768619450253,-500.0,0.00019452,3]
[402246764,1768619450262,-500.0,0.00019452,3]
[402246765,1768619450271,-500.0,0.00019452,3]
[402246766,1768619450280,-516.518886,0.00019452,3]
[402246767,1768619450289,-500.0,0.00019452,3]
[402246768,1768619450298,-264.29964932,0.00019452,3]
[402246769,1768619450308,-500.0,0.00019452,2]
[402246770,1768619450317,-500.0,0.00019452,3]
[402246771,1768619450327,-522.75268188,0.00019452,3]
[402246772,1768619450336,-1026.15,0.00019452,3]
[402246773,1768619450345,-1000.0,0.00019452,2]
[402246774,1768619450355,-500.0,0.00019452,3]
[402246775,1768619450364,-500.0,0.00019452,3]
[402246776,1768619450373,-1167.56,0.00019452,3]
[402246777,1768619450383,-841.97,0.00019452,3]
[402246778,1768619450392,-500.0,0.00019452,3]
[402246779,1768619450402,-500.0,0.00019452,3]
[402246780,1768619450411,-1718.36,0.00019452,3]
[402246781,1768619450420,-500.0,0.00019452,3]
[402246782,1768619450430,-500.0,0.00019452,3]
[402246783,1768619450439,-519.00449958,0.00019452,3]
[402246784,1768619450449,-500.0,0.00019452,3]
[402246785,1768619450458,-500.0,0.00019452,3]
[402246786,1768619450467,-500.0,0.00019452,3]
[402246787,1768619450477,-500.0,0.00019452,3]
[402246788,1768619450486,-500.0,0.00019452,3]
[402246789,1768619450496,-500.0,0.00019452,3]
[402246790,1768619450508,-836.52,0.00019452,3]
[402246791,1768619450517,-500.0,0.00019452,3]
[402246792,1768619450526,-500.0,0.00019452,3]
[402246793,1768619450536,-500.0,0.00019452,3]
[402246794,1768619450546,-1228.82,0.00019452,3]
[402246795,1768619450555,-745.52,0.00019452,3]
[402246796,1768619450565,-500.0,0.00019452,3]
[402246797,1768619450576,-500.0,0.00019452,3]
[402246798,1768619450585,-641.97,0.00019452,3]
[402246799,1768619450594,-612.73,0.00019452,3]
[402246800,1768619450604,-500.0,0.00019452,3]
[402246801,1768619450613,-519.23,0.00019452,3]
[402246802,1768619450622,-500.0,0.00019452,3]
[402246803,1768619450632,-789.14,0.00019452,3]
[402246804,1768619450641,-1010.7,0.00019452,3]
[402246805,1768619450650,-500.0,0.00019452,3]
[402246806,1768619450659,-500.0,0.00019452,3]
[402246807,1768619450669,-500.0,0.00019452,3]
[402246808,1768619450678,-1021.35,0.00019452,3]
[402246809,1768619450687,-500.0,0.00019452,3]
[402246810,1768619450697,-500.0,0.00019452,3]
[402246815,1768619450782,-500.0,0.00019452,3]
[402246816,1768619450792,-888.63,0.00019452,3]
[402246817,1768619450801,-1487.55,0.00019452,3]
[402246818,1768619450811,-500.0,0.00019452,3]
[402246819,1768619450820,-500.0,0.00019452,3]
[402246820,1768619450829,-500.0,0.00019452,3]
[402246821,1768619450838,-1143.96,0.00019452,3]
[402246822,1768619450847,-580.66,0.00019452,3]
[402246823,1768619450856,-500.0,0.00019452,3]
[402246824,1768619450866,-500.0,0.00019452,3]
[402246825,1768619450875,-573.22,0.00019452,3]
[402246826,1768619450884,-664.45,0.00019452,3]
[402246827,1768619450893,-500.0,0.00019452,3]
[402246828,1768619450902,-1259.71,0.00019452,3]
[402246829,1768619450911,-628.66,0.00019452,3]
[402246830,1768619450921,-500.0,0.00019452,3]
[402246831,1768619450929,-500.0,0.00019452,3]
[402246832,1768619450939,-608.27,0.00019452,3]
[402246833,1768619450948,-500.0,0.00019452,3]
[402246834,1768619450957,-679.4,0.00019452,3]
[402246835,1768619450966,-500.0,0.00019452,3]
[402246836,1768619450975,-225.94247433,0.00019452,3]
[402246837,1768619450984,-1501.74,0.00019452,3]
[402246838,1768619450993,-500.0,0.00019452,3]
[402246839,1768619451003,-500.0,0.00019452,3]
[402246840,1768619451013,-500.0,0.00019452,3]
[402246841,1768619451022,-687.72,0.00019452,3]
[402246842,1768619451031,-938.1,0.00019452,3]
[402246843,1768619451040,-500.0,0.00019452,3]
[402246844,1768619451049,-500.0,0.00019452,3]
[402246845,1768619451058,-500.0,0.00019452,3]
[402246846,1768619451066,-643.98345217,0.00019452,3]
[402246847,1768619451076,-500.0,0.00019452,3]
[402246848,1768619451085,-500.0,0.00019452,3]
[402246849,1768619451094,-1202.36,0.00019452,3]
[402246850,1768619451103,-500.0,0.00019452,3]
[402246851,1768619451112,-500.0,0.00019452,3]
[402246852,1768619451121,-500.0,0.00019452,3]
[402246853,1768619451130,-524.02,0.00019452,3]
[402246854,1768619451140,-500.0,0.00019452,3]
[402246855,1768619451149,-500.0,0.00019452,3]
[402246856,1768619451158,-560.78,0.00019452,3]
[402246857,1768619451167,-500.0,0.00019452,3]
[402246858,1768619451175,-500.0,0.00019452,3]
[402246859,1768619451184,-500.0,0.00019452,3]
[402246860,1768619451193,-500.0,0.00019452,3]
[402246861,1768619451202,-500.0,0.00019452,3]
[402246862,1768619451211,-500.0,0.00019452,3]
[402246863,1768619451220,-613.24737358,0.00019452,3]
[402246864,1768619451229,-500.0,0.00019452,3]
[402246865,1768619451238,-500.0,0.00019452,3]
[402246866,1768619451247,-500.0,0.00019452,3]
[402246867,1768619451255,-500.0,0.00019452,3]
[402246868,1768619451266,-545.96,0.00019452,3]
[402246869,1768619451275,-1194.19,0.00019452,3]
[402246870,1768619451284,-500.0,0.00019452,3]
[402246871,1768619451293,-500.0,0.00019452,3]
[402246872,1768619451301,-500.0,0.00019452,3]
[402246873,1768619451310,-501.17354468,0.00019452,3]
[402246874,1768619451319,-500.0,0.00019452,3]
[402246875,1768619451328,-500.0,0.00019452,3]
[402246876,1768619451336,-500.0,0.00019452,3]
[402246877,1768619451346,-500.0,0.00019452,3]
[402246878,1768619451354,-500.0,0.00019452,3]
[402246879,1768619451363,-2026.27,0.00019452,3]
[402246880,1768619451372,-500.0,0.00019452,3]
[402246881,1768619451381,-500.0,0.00019452,3]
[402246882,1768619451389,-500.0,0.00019452,3]
[402246883,1768619451398,-500.0,0.00019452,3]
[402246884,1768619451407,-1492.01,0.00019452,3]
[402246885,1768619451416,-552.18,0.00019452,3]
[402246886,1768619451424,-500.22,0.00019452,3]
[402246887,1768619451433,-500.0,0.00019452,3]
[402246888,1768619451442,-569.62,0.00019452,3]
[402246889,1768619451451,-2079.09,0.00019452,3]
[402246890,1768619451460,-624.97,0.00019452,3]
[402246891,1768619451469,-500.0,0.00019452,3]
[402246892,1768619451478,-469.18172049,0.00019452,3]
[402246893,1768619451487,-976.72,0.00019452,3]
[402246894,1768619451499,-1306.77,0.00019452,3]
[402246895,1768619451508,-500.0,0.00019452,3]
[402246896,1768619451517,-500.0,0.00019452,3]
[402246897,1768619451526,-500.0,0.00019452,3]
[402246898,1768619451535,-500.0,0.00019452,3]
[402246899,1768619451545,-500.0,0.00019452,3]
[402246900,1768619451554,-500.0,0.00019452,3]
[402246901,1768619451563,-500.0,0.00019452,3]
[402246902,1768619451574,-151.0,0.00019452,2]
[402246903,1768619451583,-151.0,0.00019452,2]
[402246904,1768619451592,-151.0,0.00019452,2]
[402246905,1768619451601,-509.99937096,0.00019452,3]
[402246906,1768619451609,-500.0,0.00019452,3]
[402246907,1768619451618,-151.0,0.00019452,2]
[402246908,1768619451627,-151.0,0.00019452,2]
[402246909,1768619451636,-151.0,0.00019452,2]
[402246910,1768619451646,-500.0,0.00019452,3]
[402246911,1768619451655,-613.33,0.00019452,3]
[402246912,1768619451663,-500.0,0.00019452,3]
[402246913,1768619451672,-699.23,0.00019452,3]
[402246914,1768619451682,-500.0,0.00019452,3]
[402246915,1768619451691,-805.73,0.00019452,3]
[402246916,1768619451701,-554.96965604,0.00019452,3]
[402246917,1768619451711,-2379.93,0.00019452,3]
[402246918,1768619451719,-913.62,0.00019452,3]
[402246919,1768619451728,-1931.52,0.00019452,3]
[402246920,1768619451737,-500.0,0.00019452,3]
[402246921,1768619451747,-1057.76,0.00019452,3]
[402246922,1768619451756,-229.085451,0.00019452,7]
[402246923,1768619451765,-500.0,0.00019452,3]
[402246924,1768619451774,-1025.41,0.00019452,3]
[402246925,1768619451783,-500.0,0.00019452,3]
[402246926,1768619451792,-500.0,0.00019452,3]
[402246927,1768619451801,-500.0,0.00019452,3]
[402246928,1768619451811,-500.0,0.00019452,3]
[402246929,1768619451820,-500.0,0.00019452,3]
[402246930,1768619451829,-502.92,0.00019452,3]
[402246931,1768619451838,-500.0,0.00019452,3]
[402246932,1768619451847,-500.0,0.00019452,3]
[402246933,1768619451856,-500.0,0.00019452,3]
[402246934,1768619451866,-500.0,0.00019452,3]
[402246935,1768619451875,-1336.73,0.00019452,3]
[402246936,1768619451884,-500.0,0.00019452,3]
[402246937,1768619451893,-1063.36,0.00019452,3]
[402246938,1768619451902,-500.0,0.00019452,3]
[402246939,1768619451911,-1088.75,0.00019452,3]
[402246940,1768619451920,-500.0,0.00019452,3]
[402246941,1768619451929,-500.0,0.00019452,3]
[402246942,1768619451938,-500.0,0.00019452,3]
[402246943,1768619451947,-500.0,0.00019452,3]
[402246944,1768619451957,-500.0,0.00019452,3]
[402246945,1768619451966,-500.0,0.00019452,3]
[402246946,1768619451975,-577.86,0.00019452,3]
[402246947,1768619451984,-500.0,0.00019452,3]
[402246948,1768619451993,-1720.39,0.00019452,3]
[402246949,1768619452002,-1109.0,0.00019452,3]
[402246950,1768619452011,-1058.39,0.00019452,3]
[402246951,1768619452021,-845.08,0.00019452,3]
[402246952,1768619452031,-500.0,0.00019452,3]
[402246953,1768619452040,-500.0,0.00019452,3]
[402246954,1768619452050,-528.74,0.00019452,3]
[402246955,1768619452059,-1092.68,0.00019452,3]
[402246956,1768619452068,-1106.04,0.00019452,3]
[402246957,1768619452077,-1221.63,0.00019452,3]
[402246958,1768619452087,-500.0,0.00019452,3]
[402246959,1768619452096,-500.0,0.00019452,3]
[402246960,1768619452106,-531.80288578,0.00019452,3]
[402246961,1768619452115,-674.07,0.00019452,3]
[402246962,1768619452125,-222.32582967,0.00019452,3]
[402246963,1768619452134,-545.70994322,0.00019452,3]
[402246964,1768619452143,-516.98754424,0.00019452,3]
[402246965,1768619452152,-500.0,0.00019452,3]
[402246966,1768619452163,-500.0,0.00019452,3]
[402246967,1768619452172,-500.0,0.00019452,3]
[402246968,1768619452181,-1047.88,0.00019452,3]
[402246969,1768619452191,-1048.21,0.00019452,3]
[402246970,1768619452202,-500.0,0.00019452,3]
[402246971,1768619452212,-500.0,0.00019452,3]
[402246972,1768619452222,-612.74,0.00019452,3]
[402246973,1768619452232,-500.0,0.00019452,3]
[402246974,1768619452243,-500.0,0.00019452,3]
[402246975,1768619452253,-500.0,0.00019452,3]
[402246976,1768619452264,-500.0,0.00019452,3]
[402246977,1768619452273,-500.0,0.00019452,3]
[402246978,1768619452282,-666.48,0.00019452,3]
[402246979,1768619452291,-500.0,0.00019452,3]
[402246980,1768619452301,-539.45,0.00019452,3]
[402246981,1768619452311,-500.0,0.00019452,3]
[402246982,1768619452320,-1066.48,0.00019452,3]
[402246983,1768619452330,-2326.34,0.00019452,3]
[402246984,1768619452339,-500.0,0.00019452,3]
[402246985,1768619452348,-350.45,0.00019452,3]
[402246986,1768619452357,-500.0,0.00019452,3]
[402246987,1768619452366,-500.0,0.00019452,3]
[402246988,1768619452375,-1504.26,0.00019452,3]
[402246989,1768619452384,-500.0,0.00019452,3]
[402246990,1768619452393,-984.65,0.00019452,3]
[402246991,1768619452402,-500.0,0.00019452,3]
[402246992,1768619452411,-500.0,0.00019452,3]
[402246993,1768619452421,-2029.03,0.00019452,3]
[402246994,1768619452431,-500.0,0.00019452,3]
[402246995,1768619452441,-1200.0,0.00019452,3]
[402246996,1768619452449,-500.0,0.00019452,3]
[402246997,1768619452460,-500.0,0.00019452,3]
[402246998,1768619452470,-500.0,0.00019452,3]
[402246999,1768619452479,-615.64,0.00019452,3]
[402247000,1768619452489,-696.06,0.00019452,3]
[402247001,1768619452500,-861.16,0.00019452,3]
[402247002,1768619452511,-500.0,0.00019452,3]
[402247003,1768619452520,-500.0,0.00019452,3]
[402247004,1768619452530,-1000.0,0.00019452,2]
[402247005,1768619452539,-500.0,0.00019452,3]
[402247006,1768619452548,-845.61,0.00019452,3]
[402247007,1768619452558,-500.0,0.00019452,3]
[402247008,1768619452568,-500.0,0.00019452,3]
[402247009,1768619452577,-500.0,0.00019452,3]
[402247010,1768619452586,-500.0,0.00019452,3]
[402247011,1768619452595,-500.0,0.00019452,3]
[402247012,1768619452604,-500.0,0.00019452,3]
[402247013,1768619452614,-500.0,0.00019452,3]
[402247014,1768619452623,-500.0,0.00019452,3]
[402247015,1768619452634,-984.53,0.00019452,3]
[402247016,1768619452643,-500.0,0.00019452,3]
[402247017,1768619452652,-500.0,0.00019452,3]
[402247018,1768619452662,-500.0,0.00019452,3]
[402247019,1768619452671,-606.77,0.00019452,3]
[402247020,1768619452680,-500.0,0.00019452,3]
[402247021,1768619452689,-789.74,0.00019452,3]
[402247022,1768619452698,-500.0,0.00019452,3]
[402247023,1768619452706,-526.03,0.00019452,3]
[402247024,1768619452715,-500.0,0.00019452,3]
[402247025,1768619452724,-2167.53,0.00019452,3]
[402247026,1768619452733,-596.34,0.00019452,3]
[402247027,1768619452743,-779.63,0.00019452,3]
[402247028,1768619452752,-500.0,0.00019452,3]
[402247029,1768619452762,-500.0,0.00019452,3]
[402247030,1768619452771,-611.86349143,0.00019452,3]
[402247031,1768619452780,-500.0,0.00019452,3]
[402247032,1768619452790,-1854.07,0.00019452,3]
[402247033,1768619452799,-500.0,0.00019452,3]
[402247034,1768619452808,-500.0,0.00019452,3]
[402247035,1768619452817,-556.64273498,0.00019452,3]
[402247036,1768619452826,-772.76,0.00019452,3]
[402247037,1768619452835,-509.29,0.00019452,3]
[402247038,1768619452844,-500.0,0.00019452,3]
[402247039,1768619452853,-500.0,0.00019452,3]
[402247040,1768619452862,-500.0,0.00019452,3]
[402247041,1768619452871,-500.0,0.00019452,3]
[402247042,1768619452880,-950.21,0.00019452,3]
[402247043,1768619452890,-500.0,0.00019452,3]
[402247044,1768619452899,-500.0,0.00019452,3]
[402247045,1768619452909,-500.0,0.00019452,3]
[402247046,1768619452918,-963.56,0.00019452,3]
[402247047,1768619452927,-1264.08,0.00019452,3]
[402247048,1768619452937,-500.0,0.00019452,3]
[402247049,1768619452946,-500.0,0.00019452,3]
[402247050,1768619452955,-500.0,0.00019452,3]
[402247051,1768619452964,-1345.83,0.00019452,3]
[402247052,1768619452974,-500.0,0.00019452,3]
[402247053,1768619452982,-500.0,0.00019452,3]
[402247054,1768619452991,-500.0,0.00019452,3]
[402247055,1768619453000,-505.74293991,0.00019452,3]
[402247056,1768619453010,-500.0,0.00019452,3]
[402247057,1768619453019,-500.0,0.00019452,3]
[402247058,1768619453029,-500.0,0.00019452,3]
[402247059,1768619453037,-424.34553456,0.00019452,3]
[402247060,1768619453047,-1057.79,0.00019452,3]
[402247061,1768619453056,-500.0,0.00019452,3]
[402247062,1768619453065,-500.0,0.00019452,3]
[402247063,1768619453075,-500.0,0.00019452,3]
[402247064,1768619453084,-500.0,0.00019452,3]
[402247065,1768619453093,-500.0,0.00019452,3]
[402247066,1768619453102,-1291.72,0.00019452,3]
[402247067,1768619453111,-500.0,0.00019452,3]
[402247068,1768619453120,-500.0,0.00019452,3]
[402247069,1768619453129,-500.0,0.00019452,3]
[402247070,1768619453138,-500.0,0.00019452,3]
[402247071,1768619453147,-500.0,0.00019452,3]
[402247072,1768619453156,-1572.69,0.00019452,3]
[402247073,1768619453166,-500.0,0.00019452,3]
[402247074,1768619453175,-1263.46,0.00019452,3]
[402247075,1768619453184,-500.0,0.00019452,3]
[402247076,1768619453193,-500.64667728,0.00019452,3]
[402247077,1768619453202,-887.22,0.00019452,3]
[402247078,1768619453211,-1933.75,0.00019452,3]
[402247079,1768619453220,-500.0,0.00019452,3]
[402247080,1768619453229,-500.0,0.00019452,3]
[402247081,1768619453238,-849.18,0.00019452,3]
[402247082,1768619453247,-1663.78,0.00019452,3]
[402247083,1768619453256,-500.0,0.00019452,3]
[402247084,1768619453265,-553.86,0.00019452,3]
[402247085,1768619453274,-1209.01,0.00019452,3]
[402247086,1768619453284,-500.0,0.00019452,3]
[402247087,1768619453293,-500.0,0.00019452,3]
[402247088,1768619453302,-1479.53,0.00019452,3]
[402247089,1768619453311,-500.0,0.00019452,3]
[402247090,1768619453320,-500.0,0.00019452,3]
[402247091,1768619453329,-1583.41,0.00019452,3]
[402247092,1768619453338,-500.0,0.00019452,3]
[402247093,1768619453347,-500.0,0.00019452,3]
[402247094,1768619453356,-500.0,0.00019452,3]
[402247095,1768619453366,-579.78697963,0.00019452,2]
[402247096,1768619453374,-861.64,0.00019452,3]
[402247097,1768619453383,-1040.26,0.00019452,3]
[402247098,1768619453393,-500.0,0.00019452,3]
[402247099,1768619453403,-1641.05,0.00019452,3]
[402247100,1768619453412,-819.93,0.00019452,3]
[402247101,1768619453421,-500.0,0.00019452,3]
[402247102,1768619453430,-500.0,0.00019452,3]
[402247103,1768619453439,-500.0,0.00019452,3]
[402247104,1768619453448,-500.64885102,0.00019452,3]
[402247105,1768619453457,-995.04,0.00019452,3]
[402247106,1768619453467,-675.23,0.00019452,3]
[402247107,1768619453476,-742.32,0.00019452,3]
[402247108,1768619453485,-500.0,0.00019452,3]
[402247109,1768619453495,-501.16566781,0.00019452,3]
[402247110,1768619453507,-1587.55,0.00019452,3]
[402247111,1768619453517,-500.0,0.00019452,3]
[402247112,1768619453527,-500.0,0.00019452,3]
[402247113,1768619453536,-500.0,0.00019452,3]
[402247114,1768619453546,-500.0,0.00019452,3]
[402247115,1768619453555,-768.32,0.00019452,3]
[402247116,1768619453564,-500.0,0.00019452,3]
[402247117,1768619453575,-500.0,0.00019452,3]
[402247118,1768619453584,-513.84,0.00019452,3]
[402247119,1768619453593,-500.0,0.00019452,3]
[402247120,1768619453603,-500.0,0.00019452,3]
[402247121,1768619453612,-500.0,0.00019452,3]
[402247122,1768619453622,-556.65,0.00019452,3]
[402247123,1768619453631,-500.0,0.00019452,3]
[402247124,1768619453642,-500.0,0.00019452,3]
[402247125,1768619453652,-500.0,0.00019452,3]
[402247126,1768619453662,-500.0,0.00019452,3]
[402247127,1768619453672,-500.0,0.00019452,3]
[402247128,1768619453681,-564.33,0.00019452,3]
[402247129,1768619453691,-731.29,0.00019452,3]
[402247130,1768619453702,-1623.12,0.00019452,3]
[402247131,1768619453711,-500.0,0.00019452,3]
[402247132,1768619453721,-500.0,0.00019452,3]
[402247133,1768619453730,-1015.47,0.00019452,3]
[402247134,1768619453740,-500.0,0.00019452,3]
[402247135,1768619453750,-559.02,0.00019452,3]
[402247136,1768619453760,-633.87,0.00019452,3]
[402247137,1768619453770,-500.0,0.00019452,3]
[402247138,1768619453780,-1159.19,0.00019452,3]
[402247139,1768619453789,-183.47082272,0.00019452,2]
[402247140,1768619453799,-500.0,0.00019452,3]
[402247141,1768619453808,-1833.03,0.00019452,3]
[402247142,1768619453819,-500.0,0.00019452,3]
[402247143,1768619453828,-500.0,0.00019452,3]
[402247144,1768619453838,-636.14,0.00019452,3]
[402247145,1768619453847,-500.0,0.00019452,3]
[402247146,1768619453856,-645.74,0.00019452,3]
[402247147,1768619453866,-500.0,0.00019452,3]
[402247148,1768619453876,-500.0,0.00019452,3]
[402247149,1768619453885,-1361.98,0.00019452,3]
[402247150,1768619453895,-500.0,0.00019452,3]
[402247151,1768619453904,-500.0,0.00019452,3]
[402247152,1768619453914,-500.0,0.00019452,3]
[402247153,1768619453924,-500.0,0.00019452,3]
[402247154,1768619453933,-1092.61,0.00019452,3]
[402247155,1768619453943,-500.0,0.00019452,3]
[402247156,1768619453952,-616.93,0.00019452,3]
[402247157,1768619453962,-500.0,0.00019452,3]
[402247158,1768619453973,-500.0,0.00019452,3]
[402247159,1768619453983,-2100.18,0.00019452,3]
[402247160,1768619453992,-500.0,0.00019452,3]
[402247161,1768619454002,-2080.66,0.00019452,3]
[402247162,1768619454012,-1568.74,0.00019452,3]
[402247163,1768619454021,-694.87,0.00019452,3]
[402247164,1768619454031,-500.0,0.00019452,3]
[402247165,1768619454041,-854.43,0.00019452,3]
[402247166,1768619454051,-500.0,0.00019452,3]
[402247167,1768619454060,-500.0,0.00019452,3]
[402247168,1768619454070,-500.0,0.00019452,3]
[402247169,1768619454080,-1025.79,0.00019452,3]
[402247170,1768619454091,-500.0,0.00019452,3]
[402247171,1768619454100,-500.0,0.00019452,3]
[402247172,1768619454110,-501.63539299,0.00019452,3]
[402247173,1768619454120,-520.58929014,0.00019452,3]
[402247174,1768619454129,-500.0,0.00019452,3]
[402247175,1768619454139,-500.0,0.00019452,3]
[402247176,1768619454148,-546.55,0.00019452,3]
[402247177,1768619454157,-1133.35,0.00019452,3]
[402247178,1768619454167,-500.0,0.00019452,3]
[402247179,1768619454176,-500.0,0.00019452,3]
[402247180,1768619454186,-500.0,0.00019452,3]
[402247181,1768619454196,-500.0,0.00019452,3]
[402247182,1768619454205,-500.0,0.00019452,3]
[402247183,1768619454215,-2563.43,0.00019452,3]
[402247184,1768619454228,-1023.96,0.00019452,3]
[402247185,1768619454238,-500.0,0.00019452,3]
[402247186,1768619454248,-1676.66,0.00019452,3]
[402247187,1768619454257,-500.0,0.00019452,3]
[402247188,1768619454267,-1393.43631015,0.00019452,2]
[402247189,1768619454277,-923.37,0.00019452,3]
[402247190,1768619454286,-500.0,0.00019452,3]
[402247191,1768619454296,-500.0,0.00019452,3]
[402247192,1768619454306,-500.0,0.00019452,3]